Cogmind - Beta 17 @@@ ROGUE MODE // 2026.08.10 @ 18:45:26 Player: 4R-ZE3 Result: Destroyed by HT-7ST(R) with Subdweller Machine Gun Performance ------------- Evolutions (0) 0 Regions Visited (3) 600 Robots Destroyed (23) 115 Value Destroyed (483) 483 Prototype IDs (0) 0 Alien Tech Used (0) 0 Bonus (0) 0 TOTAL SCORE: 1198 Bonus ------- None Cogmind --------- Core Integrity 0/250 Matter 266/300 Energy 79/125 System Corruption 0% Temperature Cool (0) Movement Rolling (110) Location -10/Subcaves Parts ------- > --- POWER (1) -------- Light Ion Engine > --- PROPULSION (2) --- Subdweller Monowheel > --- UTILITY (2) ------ Cooling System Small Storage Unit > --- WEAPON (2) ------- Beam Rifle > --- INVENTORY (8) ---- Cooling System Particle Gun Assault Rifle Rocket Launcher Peak State ------------ > --- POWER ------------ Light Nuclear Core > --- PROPULSION ------- Light Treads Wheel > --- UTILITY ---------- Cooling System Small Storage Unit > --- WEAPON ----------- Assault Rifle Heavy Assault Rifle > --- INVENTORY -------- Light Ion Engine Cooling System Beam Rifle Beam Rifle Particle Gun Assault Rifle Assault Rifle Rocket Launcher [Rating: 12] Favorites ----------- Power Light Ion Engine Engine Light Ion Engine Power Core Light Nuclear Core Propulsion Light Treads Treads Light Treads Wheel Wheel Utility Small Storage Unit Device Cooling System Storage Small Storage Unit Weapon Light Assault Rifle Energy Gun Small Laser Ballistic Gun Light Assault Rifle Build | -11 -10 -10 -10 ------- Run | Yrd Mat Min Sub Slots Evolved . | . . . . Power . | . . . . Propulsion . | . . . . Utility . | . . . . Weapon . | . . . . Parts Attached 23 | 6 6 6 5 Power 5 | 1 1 2 1 Engine 4 | 1 1 1 1 Core 1 | . . 1 . Reactor . | . . . . Propulsion 7 | 2 2 2 1 Treads 2 | . 2 . . Leg . | . . . . Wheel 5 | 2 . 2 1 Hover . | . . . . Flight . | . . . . Utility 3 | 1 2 . . Device 2 | . 2 . . Storage 1 | 1 . . . Processor . | . . . . Hackware . | . . . . Protection . | . . . . Artifact . | . . . . Weapon 8 | 2 1 2 3 Energy Gun 3 | 1 . . 2 Energy Cannon . | . . . . Ballistic Gun 5 | 1 1 2 1 Ballistic Cannon . | . . . . Launcher . | . . . . Special Weapon . | . . . . Impact Weapon . | . . . . Slashing Weapon . | . . . . Piercing Weapon . | . . . . Special Melee Weapon . | . . . . Unidentified Prototypes . | . . . . Parts Lost 11 | . 3 1 7 Power 2 | . 1 . 1 Propulsion 5 | . 2 1 2 Utility . | . . . . Weapon 4 | . . . 4 Highest Loss Streak 7 | . 2 1 7 To Critical Strikes . | . . . . Average Backups 7 | 2 6 7 6 Power . | . 1 1 . Propulsion . | 1 . . . Utility . | . . 1 1 Weapon 5 | . 4 5 4 Tool/Special . | . . . . Unused Backups 6 | . . 2 4 Power . | . . . . Propulsion . | . . . . Utility 1 | . . . 1 Weapon 5 | . . 2 3 Tool/Special . | . . . . Average Slot Usage (%) 96 | . 96 98 81 Engine 11 | . 13 9 5 Core 2 | . . 4 5 Treads 20 | . 23 19 . Wheel 6 | . 3 7 21 Device 12 | . 11 14 14 Storage 14 | . 14 14 14 Energy Gun 8 | . 14 3 8 Ballistic Gun 18 | . 14 24 12 Peak Build Rating 12 | 6 9 12 12 Average Rating 9 | 4 8 10 9 On Entrance 6 | . 6 9 12 Avg Prop Armor Cover (%) 11 | . . 11 . Naked Turns . | . . . . Heaviest Build 19 | 10 12 19 17 Greatest Support 40 | 26 40 40 20 Greatest Overweight (x) 4 | . . 1 4 Average Overweight (x) . | . . . . Largest Inventory Capacity 8 | 8 8 8 8 Average Capacity 7 | 6 8 8 8 Most Carried 8 | 4 8 8 8 Average Carried 7 | 2 6 7 6 Final Capacity 8 | 8 8 8 8 Final Carried 8 | 4 8 8 4 Class Distribution -------------------- 84% | Mutant 15% | Scavenger-Mutant Dominant Class ---------------- Mutant | -10/Materials Mutant | -10/Mines Scavenger-Mutant | -10/Subcaves Resources | -11 -10 -10 -10 ----------- Run | Yrd Mat Min Sub Matter Collected 608 | 239 117 209 43 Remotely . | . . . . Salvage Created 690 | . 371 230 89 Parts 42 | . 20 19 3 Haulers Intercepted 1 | . 1 . . Recyclers Shooed 1 | . . 1 . Parts Field Recycled . | . . . . Retrieved Matter . | . . . . Parts Self-Destructed . | . . . . Prevented . | . . . . Parts Restored . | . . . . Kills | -11 -10 -10 -10 ------- Run | Yrd Mat Min Sub Combat Hostiles Destroyed 19 | . 9 8 2 Guns 19 | . 9 8 2 Classes Destroyed 7 | . 3 3 1 Worker 1 | . . 1 . Builder 1 | . . 1 . Tunneler 1 | . . 1 . Hauler 1 | . 1 . . Swarmer 9 | . 3 6 . Grunt 8 | . 6 2 . Subdweller 2 | . . . 2 Best Kill Streak 3 | . 3 3 2 Combat Bots Only 3 | . 3 3 2 Max Kills in Single Turn 2 | . 1 2 1 Gunslinging 1 | . . 1 . Exploded . | . . . . Melee . | . . . . Uniques/NPCs Destroyed . | . . . . Combat | -11 -10 -10 -10 -------- Run | Yrd Mat Min Sub Hostile Shots Fired 126 | . 50 45 31 Missed 27 | . 12 10 5 Hits 99 | . 38 35 26 Projectile 99 | . 38 35 26 Damage Taken 1467 | . 477 404 586 Core 271 | . 134 43 94 Absorbed by Shields . | . . . . Core Remaining (%) 100 | 100 . . . Volleys Fired 104 | . 55 36 13 Largest 2 | . 2 2 2 Hottest 79 | . 60 60 79 Shots Fired 205 | . 110 72 23 Gun 205 | . 110 72 23 Cannon . | . . . . Launcher . | . . . . Special . | . . . . Kinetic 129 | . 55 62 12 Thermal 76 | . 55 10 11 Explosive . | . . . . Electromagnetic . | . . . . Robot Hit Streak 18 | . 12 7 18 Robot Miss Streak 3 | . 3 2 1 Penetration Max . | . . . . Secondary Targets 2 | . . 1 1 Max Gunslinging Chain 1 | . . 1 1 Shots Hit Robots 144 | . 73 49 22 Core Hits 43 | . 21 16 6 Critical Kills 1 | . . 1 . Critical Parts Destroyed . | . . . . Critical Strikes 2 | . . 1 1 Burn 1 | . . . 1 Destroy 1 | . . 1 . Melee Attacks . | . . . . Impact . | . . . . Slashing . | . . . . Piercing . | . . . . Sneak Attacks . | . . . . Combat Hostiles . | . . . . Follow-up Attacks . | . . . . Damage Inflicted 1614 | . 668 669 277 Guns 1614 | . 668 669 277 Cannons . | . . . . Explosions . | . . . . Melee . | . . . . Ramming . | . . . . Kinetic 1074 | . 323 603 148 Thermal 540 | . 345 66 129 Explosive . | . . . . Electromagnetic . | . . . . Impact . | . . . . Slashing . | . . . . Piercing . | . . . . Highest Corruption . | . . . . Average Corruption . | . . . . Corruption Purged . | . . . . Corruption Blocked . | . . . . Overload Shots . | . . . . Overflow Damage . | . . . . Projectiles . | . . . . Explosions . | . . . . Melee . | . . . . Knockbacks . | . . . . Impact . | . . . . Kinetic . | . . . . Secondary . | . . . . Self-Inflicted Damage . | . . . . Shots . | . . . . Rammed . | . . . . Targets Rammed . | . . . . Kicked . | . . . . Crushed . | . . . . Highest Temperature 301 | . 301 . . Average Temperature 153 | . 153 . . Received Heat Transfer 510 | . 243 144 123 Siege Activations . | . . . . Martial Activations . | . . . . Shielding Activations . | . . . . Robots Disrupted . | . . . . Combat Hostiles . | . . . . Robots Corrupted . | . . . . Combat Hostiles . | . . . . Parts Fried . | . . . . Impact Corruptions . | . . . . Robots Melted . | . . . . Combat Hostiles . | . . . . Parts Melted 4 | . 1 . 3 Heat Transferred 1332 | . 775 150 407 Parts Sabotaged . | . . . . Parts Stolen . | . . . . Parts Stripped . | . . . . Power Chain Reactions . | . . . . Alert | -11 -10 -10 -10 ------- Run | Yrd Mat Min Sub Maximum Alert Level . | . . . . Low Security (%) 100 | 100 100 100 . Level 1 . | . . . . Level 2 . | . . . . Level 3 . | . . . . Level 4 . | . . . . Level 5 . | . . . . High Security . | . . . . Max Security . | . . . . Peak Influence 66 | . 66 64 . Initial 4 | . . 4 . Average 22 | . 19 26 . Influence Increases 493 | . 273 220 . Destroy 0b10 Robot/C 340 | . 180 160 . Destroy 0b10 Robot/NC 20 | . 5 15 . Destroy Leader 82 | . 52 30 . Successful Hack 6 | . 6 . . Select Force Hacks 30 | . 30 . . Lose Combat Pursuer 15 | . . 15 . Influence Decreases 493 | . 261 232 . Entered New Map 8 | . . 8 . Time Decay 445 | . 231 214 . Lost Part 40 | . 30 10 . Squads Dispatched 5 | . 5 . . Investigation 3 | . 3 . . Extermination . | . . . . Reinforcement 2 | . 2 . . Assault . | . . . . Garrison . | . . . . Intercept . | . . . . Searches Triggered . | . . . . Construction Impeded . | . . . . Haulers Reinforced . | . . . . Active Scanning Responses . | . . . . Cargo Convoy Interrupts . | . . . . Stealth | -11 -10 -10 -10 --------- Run | Yrd Mat Min Sub Distress Signals 2 | . 1 1 . Communications Jammed . | . . . . Distress Signals . | . . . . Times Spotted 29 | . 18 8 3 Peak Tracking Total 5 | . 5 2 2 Tactical Retreats 1 | . . 1 . Traps | -11 -10 -10 -10 ------- Run | Yrd Mat Min Sub Traps Triggered . | . . . . Indirectly . | . . . . Trap Hack Attempts . | . . . . Triggered . | . . . . Disarmed . | . . . . Reprogrammed . | . . . . Reused . | . . . . Traps Extracted . | . . . . Installed . | . . . . Triggered . | . . . . Machines | -11 -10 -10 -10 ---------- Run | Yrd Mat Min Sub Machines Disabled . | . . . . Max in Single Turn . | . . . . Machines Repaired . | . . . . Machines Dismantled . | . . . . Machines Sabotaged . | . . . . Overloaded Fab Kills . | . . . . Hacking | -11 -10 -10 -10 --------- Run | Yrd Mat Min Sub Machines Accessed 4 | . 4 . . Terminals 2 | . 2 . . Fabricators . | . . . . Repair Stations . | . . . . Recycling Units 2 | . 2 . . Scanalyzers . | . . . . Garrison Access . | . . . . Total Hacks 9 | . 9 . . Successful 2 | . 2 . . Failed 6 | . 6 . . Catastrophic 3 | . 3 . . Database Lockouts 1 | . 1 . . Manual 7 | . 7 . . Terminals 6 | . 6 . . Fabricators . | . . . . Repair Stations . | . . . . Recycling Units 3 | . 3 . . Scanalyzers . | . . . . Garrison Access . | . . . . Terminal Hacks 1 | . 1 . . Robot Analysis 1 | . 1 . . Fabricator Hacks . | . . . . Repair Station Hacks . | . . . . Recycling Unit Hacks . | . . . . Scanalyzer . | . . . . Garrison Access Hacks . | . . . . Unauthorized Hacks 1 | . 1 . . Terminals . | . . . . Fabricators . | . . . . Repair Stations . | . . . . Recycling Units 1 | . 1 . . Tunnel 1 | . 1 . . Scanalyzers . | . . . . Garrison Access . | . . . . Data Cores Recovered . | . . . . Used . | . . . . Hacking Detections 3 | . 3 . . Full Trace Events 2 | . 2 . . Feedback Events . | . . . . Feedback Blocked . | . . . . Robot Schematics Acquired . | . . . . Robots Built . | . . . . Authchips . | . . . . Time . | . . . . Total Robot Build Rating . | . . . . Part Schematics Acquired . | . . . . Parts Built . | . . . . Authchips . | . . . . Time . | . . . . Total Part Build Rating . | . . . . Part Studies Acquired . | . . . . Parts Repaired . | . . . . Time . | . . . . Parts Recycled . | . . . . Recycled Matter . | . . . . Retrieved Matter . | . . . . Retrieved Components . | . . . . Parts Scanalyzed . | . . . . Part Schematics Acquired . | . . . . Parts Damaged . | . . . . Bothacking | -11 -10 -10 -10 ------------ Run | Yrd Mat Min Sub Used RIF Installer . | . . . . Robots Hacked . | . . . . Non-combat . | . . . . Combat . | . . . . Robot Hacks Applied . | . . . . Relay Couplers Released . | . . . . Fabnet Peak Effective % . | . . . . Robots Rewired . | . . . . Allies Hacked . | . . . . Hacks Repelled . | . . . . Allies | -11 -10 -10 -10 -------- Run | Yrd Mat Min Sub Total Allies . | . . . . Largest Group . | . . . . Highest-Rated Group . | . . . . Highest-Rated Ally . | . . . . Total Orders . | . . . . Ally Attacks . | . . . . Total Damage . | . . . . Kills . | . . . . Allies Corrupted . | . . . . Allies Melted . | . . . . Intel | -11 -10 -10 -10 ------- Run | Yrd Mat Min Sub Active Infowar (turns) . | . . . . Robot Analysis Total 1 | . 1 . . Derelict Logs Recovered 2 | . . 2 . Drone Launches . | . . . . Drone Recoveries . | . . . . Exploration | -11 -10 -10 -10 ------------- Run | Yrd Mat Min Sub Turns Passed 1529 | 41 710 713 65 Spaces Moved 833 | 34 325 454 20 Core 2 | 1 . . 1 Treads 565 | . 308 257 . Legs . | . . . . Wheels 266 | 33 17 197 19 Hover . | . . . . Flight . | . . . . Fastest Speed 50 | 50 90 80 80 Average Speed 135 | 83 156 125 91 Slowest Speed 250 | 90 160 160 250 Overloaded Moves . | . . . . Propulsion Burnouts . | . . . . Robots Hopped . | . . . . Potential Cave-ins . | . . . . Cave-ins Triggered . | . . . . Exploration Rate (%) 30 | 2 51 67 3 Regions Visited 3 Branch Regions 2 Pre-discovered Areas 2 | . 1 1 . Known Exits Taken . | . . . . Unknown Exits Taken 3 | 1 1 1 . Scrap Searched 2 | . . 2 . Spaces Dug . | . . . . Terrain Destroyed . | . . . . Melee . | . . . . Projectile . | . . . . AOE . | . . . . Terrain Rammed . | . . . . Walls Destroyed . | . . . . Machines Disabled . | . . . . Actions | -11 -10 -10 -10 --------- Run | Yrd Mat Min Sub Total 1043 | 43 427 530 43 Wait 62 | . 33 25 4 Move 830 | 33 324 453 20 Hop . | . . . . Pick Up 14 | 4 7 3 . Fast Attach 12 | 6 2 3 1 Attach 6 | . 2 . 4 Detach . | . . . . Swap 6 | . 2 3 1 Drop 9 | . 2 7 . Fire 104 | . 55 36 13 Melee . | . . . . Ram . | . . . . Kick . | . . . . Crush . | . . . . Escape Stasis . | . . . . Rewire . | . . . . Trap . | . . . . Miscellaneous . | . . . . Route ------- -11/Scrapyard -10/Materials (discovered 2 exits: [*Mat] / [*Min]) -10/Mines -10/Subcaves History --------- Turn | Location | Event 10 | -11/Scrapyard | Discovered new exit (range 15) 42 | -11/Scrapyard | Entered Materials 140 | -10/Materials | Core integrity fell below 50% 329 | -10/Materials | Build established: Mutant 343 | -10/Materials | Central database locked down 533 | -10/Materials | Discovered new exit (range 5) 733 | -10/Materials | Discovered new exit (range 9) 752 | -10/Materials | Entered Mines 832 | -10/Mines | Received a Rocket Launcher from a helpful Derelict 1000 | -10/Mines | Joined a pair of Derelicts in attacking an 0b10 outpost 1047 | -10/Mines | Discovered new exit (range 10) 1143 | -10/Mines | Learned location of Zion (-6) 1159 | -10/Mines | Learned location of 1 exit from Materials 1374 | -10/Mines | Assembled infested the area 1465 | -10/Mines | Entered Subcaves 1466 | -10/Subcaves | Approached by a straggling Scientist 1497 | -10/Subcaves | Core integrity fell below 20% 1530 | -10/Subcaves | Destroyed by HT-7ST(R) with Subdweller Machine Gun Last Messages --------------- 01492_ Wheel destroyed. 01494_ Assault Rifle destroyed. 01498_ Sub. Power Source melted. 01498_ Sub. Beam Cannon melted. 01498_ 4B-P9H(R) destroyed. 01498_ Switching to secondary target: A3-1HW(R). 01499_ Subatomizers dissect the Sub. Monowheel. 01504_ A3-1HW(R) affixes Scrap Shield Fragment to Scrap Shield. 01509_ Assault Rifle destroyed. 01510_ Wheel destroyed. 01512_ Sub. Monowheel melted. 01512_ A3-1HW(R) destroyed. 01512_ Hvy. Assault Rifle destroyed. 01513_ Subatomizers dissect the Sub. Monowheel. VG-XUW(c): "I think it's somewhere southeast of here" 01517_ Acquired Sub. Monowheel. 01519_ Acquired 43 matter. 01524_ Subatomizers dissect the Sub. Optics. Map ----- +----------------------------------------------------+ | ?????????????????????????????????????????????????? | | ?????????????????????????????????????????????????? | | ?????????????????????????????????????????????????? | | ?????????????????????????????????????????????????? | | ?????????????????????????????????????????????????? | | ?????????????????????????????????????????????????? | | ?????????????????????????????????????????????????? | | ?????????????????????????????????????????????????? | | ?????????????????????????????????????????????????? | | ?????????????????????????????????????????????????? | | ?????????????????????????????????????????????????? | | ???????????????????????? ??????????????????????? | | ???????????????????????? ?????????????????????? | | ???????????????????????# #????????????????????? | | ???????????????????????# #????????????????????? | | ??????????????????????## ### ##???????????????? | | ?????????????????????## #???????????????? | | ????????????????????? c #???????????????? | | ?????????????????????? #???????????????? | | ?????????????????????? #???????????????? | | ?????????????????####?# #???????????????? | | ?????????????????# ## #???????????????? | | ??????????????????? ?????????????????? | | ????????????????????? " ???????????????????? | | ??????????????????????# " "?????????????????????? | | ?????????????????????##&!@#??????????????????????? | | ?????????????????????#!%R##??????????????????????? | | ??????????????##?????##! #???????????????????????? | | ?????????????## ##???##" ##???##?????????????????? | | ?????????????# ##??#" " #?? #?????????????????? | | ?????????????# "#### "###"" #?????????????????? | | ?????????????## " ## "" """#?????????????????? | | ??????????????##"" "" #??????????????????? | | ???????????????# " "# #??????????????????? | | ???????????????#""## ##????????????????????? | | ???????????????#" ## ??????????????? | | ???????????????#### ###"" ??????????? | | ??????????????????## ## ###?????? ??????????????? | | ???????????????????#### #???????????????????????? | | ?????????????????????? #???????????????????????? | | ??????????????????????# ???????????????????????? | | ??????????????????????# #??????????????????????? | | ??????????????????????# #??????????????????????? | | ??????????????????????#### ??????????????????????? | | ??????????????????????????#??????????????????????? | | ?????????????????????????????????????????????????? | | ?????????????????????????????????????????????????? | | ?????????????????????????????????????????????????? | | ?????????????????????????????????????????????????? | | ?????????????????????????????????????????????????? | +----------------------------------------------------+ Best States ------------- Heat Dissipation 47 Energy Generation 14 Energy Capacity 265 Matter Stores 300 Matter Capacity 300 Sight Range 16 Terrain Scan Density 10 Evasion (%) 44 Recoil Reduction 2 Item Schematics ----------------- None Robot Schematics ------------------ None Fabricated ------------ Nothing Repaired ---------- Nothing Studied --------- None Alien Tech Used ----------------- None Achievements -------------- None Challenges ------------ None Game ------ Seed FrostNovaBoomstick Manual? 0 Play Time 00:07:56 Cumulative 217.1 hours Start 2026.08.10 @ 18:38:11 End 2026.08.10 @ 18:45:26 Sessions 1 Manual Loads 0 Difficulty Rogue Special Mode None Game No. 224 Rogue 170 Adventurer 54 Explorer 0 Win Type - Total 9 Types 5/0/1/1/0/0/0/1/0/1 Lore% 73 Gallery% 61 Achievement% 58 Wizard Run 0 Options --------- Layout 1 ASCII 0 Keyboard 0 Movement Mouse Keybinds 1 Fullscreen 2 Font 32/Tamsyn Map View 50x35 Zoom Use 0% Tactical HUD 1 Map Filters NONE Filters NONE Steam 1 RUN: 1a63f889-ce9a-48ca-a150-2c2d564bea68